fUSD/lending_fUSD_20251025
["ID","MTS","AMOUNT","RATE_DAILY","PERIOD"]
[392333958,1761355720389,21695.31012539,0.00015,2]
[392333973,1761355832092,-91.97586163,0.00017,2]
[392333974,1761355832101,-198.33520086,0.00019,2]
[392333975,1761355832282,-346.01714914,0.00019,2]
[392333976,1761355832293,-242.20410643,0.00019,2]
[392333977,1761355832305,-830.16032389,0.00019,2]
[392333978,1761355832322,-2485.21818441,0.00019,2]
[392333979,1761355832330,-544.35235,0.00021,2]
[392333980,1761355832340,-172.3,0.0002139,2]
[392333981,1761355832350,-544.35235,0.00023,2]
[392333982,1761355832358,-2073.65167404,0.00023778,2]
[392333983,1761355832370,-500.0,0.00023858,2]
[392333984,1761355832383,-500.0,0.00023858,2]
[392333985,1761355832393,-500.0,0.00023858,2]
[392333986,1761355832402,-500.0,0.00023858,2]
[392333987,1761355832412,-500.0,0.00023858,2]
[392333988,1761355832422,-500.0,0.00023858,2]
[392333989,1761355832431,-500.0,0.00023858,2]
[392333990,1761355832440,-500.0,0.00023858,2]
[392333991,1761355832452,-500.0,0.00023858,2]
[392333992,1761355832461,-500.0,0.00023858,2]
[392333993,1761355832472,-500.0,0.00023858,2]
[392333994,1761355832481,-500.0,0.00023858,2]
[392333995,1761355832490,-500.0,0.00023858,2]
[392333996,1761355832500,-500.0,0.00023858,2]
[392333997,1761355832509,-181.87916766,0.00023858,2]
[392333998,1761355832518,-500.0,0.00023858,2]
[392333999,1761355832528,-500.0,0.00023858,2]
[392334000,1761355832537,-500.0,0.00023858,2]
[392334001,1761355832552,-500.0,0.00023858,2]
[392334002,1761355832563,-500.0,0.00023858,2]
[392334005,1761355832576,-500.0,0.00023858,2]
[392334007,1761355832585,-500.0,0.00023858,2]
[392334010,1761355832595,-500.0,0.00023858,2]
[392334013,1761355832604,-500.0,0.00023858,2]
[392334016,1761355832613,-500.0,0.00023858,2]
[392334018,1761355832622,-500.0,0.00023858,2]
[392334020,1761355832632,-500.0,0.00023858,2]
[392334022,1761355832641,-500.0,0.00023858,2]
[392334023,1761355832651,-500.0,0.00023858,2]
[392334024,1761355832660,-500.0,0.00023858,2]
[392334025,1761355832670,-500.0,0.00023858,2]
[392334026,1761355832680,-500.0,0.00023858,2]
[392334027,1761355832690,-500.0,0.00023858,2]
[392334028,1761355832703,-500.0,0.00023858,2]
[392334029,1761355832713,-500.0,0.00023858,2]
[392334030,1761355832724,-500.0,0.00023858,2]
[392334031,1761355832736,-500.0,0.00023858,2]
[392334032,1761355832747,-500.0,0.00023858,2]
[392334033,1761355832759,-500.0,0.00023858,2]
[392334034,1761355832769,-500.0,0.00023858,2]
[392334035,1761355832783,-500.0,0.00023858,2]
[392334036,1761355832793,-500.0,0.00023858,2]
[392334037,1761355832803,-500.0,0.00023858,2]
[392334038,1761355832815,-500.0,0.00023858,2]
[392334039,1761355832825,-500.0,0.00023858,2]
[392334040,1761355832835,-500.0,0.00023858,2]
[392334041,1761355832845,-500.0,0.00023858,2]
[392334042,1761355832855,-500.0,0.00023858,2]
[392334043,1761355832865,-500.0,0.00023858,2]
[392334044,1761355832875,-500.0,0.00023858,2]
[392334045,1761355832884,-500.0,0.00023858,2]
[392334046,1761355832894,-500.0,0.00023858,2]
[392334047,1761355832904,-500.0,0.00023858,2]
[392334048,1761355832915,-500.0,0.00023858,2]
[392334049,1761355832925,-500.0,0.00023858,2]
[392334050,1761355832936,-500.0,0.00023858,2]
[392334051,1761355832946,-500.0,0.00023858,2]
[392334052,1761355832955,-500.0,0.00023858,2]
[392334053,1761355832965,-500.0,0.00023858,2]
[392334054,1761355832974,-500.0,0.00023858,2]
[392334055,1761355832986,-500.0,0.00023858,2]
[392334056,1761355832996,-500.0,0.00023858,2]
[392334057,1761355833007,-500.0,0.00023858,2]
[392334058,1761355833017,-500.0,0.00023858,2]
[392334059,1761355833026,-500.0,0.00023858,2]
[392334060,1761355833035,-618.18791677,0.00023858,2]
[392334061,1761355833045,-500.0,0.00023858,2]
[392334062,1761355833054,-500.0,0.00023858,2]
[392334063,1761355833063,-500.0,0.00023858,2]
[392334064,1761355833072,-150.1123455,0.00023858,2]
[392334065,1761355833082,-200.0,0.00023861,2]
[392334066,1761355833091,-150.0,0.00023861,2]
[392334067,1761355833101,-150.0,0.00023865,2]
[392334068,1761355833110,-150.0,0.00023865,2]
[392334069,1761355833121,-500.0,0.00023865,2]
[392334070,1761355833130,-150.0,0.00023865,2]
[392334071,1761355833141,-202.87028618,0.00023865,2]
[392334072,1761355833151,-150.0,0.00023865,2]
[392334073,1761355833161,-500.0,0.00023865,2]
[392334074,1761355833170,-500.0,0.00023865,2]
[392334075,1761355833181,-844.0,0.00023865,2]
[392334076,1761355833191,-150.0,0.00023865,2]
[392334077,1761355833202,-622.1284055,0.00023868,2]
[392334078,1761355833212,-2173.5549621,0.00023868,2]
[392334079,1761355833221,-7557.593194,0.00023868,2]
[392334080,1761355833232,-2706.7811343,0.00023868,2]
[392334081,1761355833242,-500.81021082,0.000239,2]
[392334082,1761355833251,-582.12131672,0.000239,2]
[392334083,1761355833260,-500.0,0.000239,2]
[392334084,1761355833269,-150.0,0.00023916,2]
[392334085,1761355833279,-150.0,0.0002392,2]
[392334086,1761355833289,-500.0,0.0002392,2]
[392334087,1761355833299,-150.0,0.0002392,2]
[392334088,1761355833309,-150.0,0.0002392,2]
[392334089,1761355833320,-500.0,0.0002392,2]
[392334090,1761355833329,-500.0,0.0002392,2]
[392334091,1761355833339,-844.0,0.0002392,2]
[392334092,1761355833348,-461.73,0.00023958,2]
[392334093,1761355833357,-200.0,0.00023971,2]
[392334094,1761355833367,-200.17715174,0.00023975,2]
[392334095,1761355833385,-500.0,0.00023975,2]
[392334096,1761355833402,-150.0,0.00023975,2]
[392334097,1761355833411,-200.0,0.00023975,2]
[392334098,1761355833421,-500.0,0.00023975,2]
[392334099,1761355833431,-500.0,0.00023975,2]
[392334100,1761355833442,-844.0,0.00023975,2]
[392334101,1761355833452,-500.0,0.00024029,2]
[392334102,1761355833463,-227.61823771,0.00024029,2]
[392334103,1761355833474,-500.0,0.00024029,2]
[392334104,1761355833485,-514.30865827,0.00024029,2]
[392334105,1761355833495,-844.0,0.00024029,2]
[392334106,1761355833504,-500.0,0.00024084,2]
[392334107,1761355833514,-500.0,0.00024084,2]
[392334108,1761355833524,-844.0,0.00024084,2]
[392334109,1761355833533,-249.32516873,0.00024126,2]
[392334110,1761355833543,-500.0,0.00024139,2]
[392334111,1761355833553,-500.0,0.00024139,2]
[392334112,1761355833562,-844.0,0.00024139,2]
[392334113,1761355833572,-500.0,0.00024194,2]
[392334114,1761355833581,-500.0,0.00024194,2]
[392334115,1761355833590,-844.0,0.00024194,2]
[392334116,1761355833600,-500.0,0.00024249,2]
[392334117,1761355833609,-844.0,0.00024249,2]
[392334118,1761355833618,-500.0,0.00024303,2]
[392334119,1761355833628,-844.0,0.00024303,2]
[392334120,1761355833637,-500.0,0.00024358,2]
[392334121,1761355833647,-844.0,0.00024358,2]
[392334122,1761355833657,-500.0,0.00024413,2]
[392334123,1761355833666,-844.0,0.00024413,2]
[392334124,1761355833675,-500.0,0.00024468,2]
[392334125,1761355833685,-844.0,0.00024468,2]
[392334126,1761355833698,-500.0,0.00024523,2]
[392334127,1761355833709,-844.0,0.00024523,2]
[392334128,1761355833719,-500.0,0.00024577,2]
[392334129,1761355833728,-844.0,0.00024577,2]
[392334130,1761355833741,-500.0,0.00024632,2]
[392334131,1761355833751,-844.0,0.00024632,2]
[392334132,1761355833761,-436.94634404,0.00024687,2]
[392334133,1761355833771,-844.0,0.00024687,2]
[392334134,1761355833781,-844.0,0.00024742,2]
[392334135,1761355833790,-844.0,0.00024797,2]
[392334136,1761355833799,-844.0,0.00024851,2]
[392334137,1761355833808,-844.0,0.00024906,2]
[392334138,1761355833819,-461.73,0.00024916,2]
[392334139,1761355833830,-844.0,0.00024961,2]
[392334140,1761355833839,-544.35235,0.00025,2]
[392334141,1761355833849,-1883.22190054,0.00025,7]
[392334142,1761355833858,-844.0,0.00025016,2]
[392334143,1761355833869,-844.0,0.0002507,2]
[392334144,1761355833878,-856.64388826,0.00025125,2]
[392334145,1761355833888,-500.0,0.00025267,2]
[392334146,1761355833897,-500.0,0.00025267,2]
[392334147,1761355833906,-504.21524973,0.00025267,2]
[392334148,1761355833916,-500.0,0.00025267,2]
[392334149,1761355833926,-513.0672795,0.00025815,2]
[392334150,1761355833935,-623.98053519,0.00025815,2]
[392334151,1761355833948,-1005.79948058,0.00025815,2]
[392334152,1761355833957,-461.73,0.00025874,2]
[392334153,1761355833967,-2500.0,0.00026136,2]
[392334154,1761355833977,-150.0,0.00026301,2]
[392334155,1761355833986,-258.30182387,0.00026301,2]
[392334156,1761355833995,-153.36,0.00026641,2]
[392334157,1761355834005,-2173.5549621,0.00026808,2]
[392334158,1761355834014,-7557.593194,0.00026808,2]
[392334159,1761355834025,-529.78196651,0.00026808,2]
[392334160,1761355834035,-461.73,0.00026833,2]
[392334161,1761355834045,-2706.7811343,0.00026892,2]
[392334162,1761355834055,-622.1284055,0.00026955,2]
[392334163,1761355834064,-150.0,0.00026992,2]
[392334164,1761355834075,-152.16,0.00027407,120]
[392334165,1761355834084,-250.0,0.00027628,2]
[392334166,1761355834094,-461.73,0.00027791,2]
[392334167,1761355834103,-7880.11601639,0.00028,2]
[392334168,1761355834115,-37330.68193365,0.00028,2]
[392334169,1761355834131,-16943.74081371,0.00028,2]
[392334170,1761355834141,-153.36,0.00028544,2]
[392334171,1761355834150,-878.34819662,0.00028649,2]
[392334172,1761355834160,-461.73,0.00028749,2]
[392334173,1761355834169,-461.73,0.00029707,2]
[392334174,1761355834179,-2173.5549621,0.00029748,2]
[392334175,1761355834190,-7557.593194,0.00029748,2]
[392334176,1761355834199,-2706.7811343,0.00029916,2]
[392334177,1761355834209,-878.34819658,0.00029935,2]
[392334178,1761355834218,-622.1284055,0.00030041,2]
[392334179,1761355834228,-166.66,0.00030055,30]
[392334180,1761355834238,-496.879,0.00030178,25]
[392334181,1761355834247,-153.36,0.00030447,2]
[392334182,1761355834256,-461.73,0.00030666,2]
[392334183,1761355834267,-166.66,0.00030688,30]
[392334184,1761355834277,-666.0,0.00031194,3]
[392334185,1761355834286,-878.34819658,0.00031221,2]
[392334186,1761355834295,-166.66,0.0003132,30]
[392334187,1761355834304,-461.73,0.00031624,2]
[392334188,1761355834314,-166.66,0.00031953,30]
[392334189,1761355834327,-1000.0,0.000323,2]
[392334190,1761355834337,-153.36,0.0003235,2]
[392334191,1761355834347,-878.34819658,0.00032507,2]
[392334192,1761355834364,-261.39919556,0.00032582,2]
[392334193,1761355834380,-200.33080444,0.00032582,2]
[392334194,1761355834391,-166.66,0.00032586,30]
[392334195,1761355834414,-2173.5549621,0.00032688,2]
[392334196,1761355834425,-7557.593194,0.00032688,2]
[392334197,1761355834434,-2706.7811343,0.0003294,2]
[392334198,1761355834447,-300.0,0.00032999,7]
[392334199,1761355834458,-622.1284055,0.00033128,2]
[392334200,1761355834468,-166.66,0.00033218,30]
[392334201,1761355834478,-355.08,0.00033314,2]
[392334202,1761355834488,-461.73,0.00033541,2]
[392334203,1761355834497,-878.34819658,0.00033793,2]
[392334204,1761355834507,-153.36,0.00034253,2]
[392334205,1761355834516,-10124.38887602,0.00034408,2]
[392334206,1761355834529,-4605.95112398,0.00034408,2]
[392334207,1761355834539,-461.73,0.00034499,2]
[392334208,1761355834548,-177.17,0.00034531,2]
[392334209,1761355834558,-500.0,0.00034649,2]
[392334210,1761355834567,-150.99,0.00034649,30]
[392334211,1761355834576,-150.99,0.00034649,2]
[392334212,1761355834585,-316.15,0.00034649,2]
[392334213,1761355834595,-9999.99,0.00034649,2]
[392334214,1761355834604,-999.99,0.00034649,2]
[392334215,1761355834616,-5694.96,0.00034649,2]
[392334216,1761355834626,-287.36,0.00034649,2]
[392334217,1761355834636,-908.93,0.00034649,2]
[392334218,1761355834646,-77439.44984504,0.0003465,2]
[392334219,1761355834655,-878.34819658,0.0003508,2]
[392334220,1761355834665,-166.66,0.00035203,2]
[392334221,1761355834674,-461.73,0.00035457,2]
[392334222,1761355834684,-152.0,0.0003555,3]
[392334223,1761355834698,-475.0444741,0.00036,30]
[392334224,1761355834708,-153.36,0.00036156,2]
[392334225,1761355834718,-2603.88107745,0.0003626,2]
[392334226,1761355834731,-4505.87,0.00036261,2]
[392334227,1761355834743,-880.73524117,0.00036261,2]
[392334230,1761355838256,-211.1108173,0.000209,2]
[392334231,1761355838265,-150.0,0.0003344,3]
[392334232,1761355838275,-384.50925413,0.00036261,2]
[392334282,1761355840224,-475.91278103,0.00036189,2]
[392334285,1761355840233,-13152.8455047,0.00036261,2]
[392334288,1761355840243,-166.66,0.00036365,2]
[392334291,1761355840252,-878.34819658,0.00036366,2]
[392334294,1761355840261,-475.59,0.00036405,2]
[392334296,1761355840271,-461.73,0.00036416,2]
[392334298,1761355840281,-324.96,0.00036438,2]
[392334300,1761355840290,-168.52,0.00036438,2]
[392334302,1761355840299,-200.0,0.00036551,2]
[392334304,1761355840308,-475.59,0.00036575,2]
[392334306,1761355840317,-159.69123111,0.00036702,15]
[392334308,1761355840327,-278.51097768,0.00036703,2]
[392334310,1761355840336,-2603.88107741,0.00036725,2]
[392334312,1761355840345,-1312.0,0.00036767,2]
[392334314,1761355840355,-606.0,0.00036767,2]
[392334316,1761355840365,-1591.0,0.00036767,2]
[392334318,1761355840376,-818.0,0.00036767,2]
[392334320,1761355840385,-1269.0,0.00036767,2]
[392334322,1761355840394,-1185.0,0.00036767,2]
[392334324,1761355840403,-903.0,0.00036767,2]
[392334326,1761355840412,-159.393,0.00036767,2]
[392334328,1761355840422,-3414.0,0.00036767,2]
[392334330,1761355840431,-6541.0,0.00036767,2]
[392334332,1761355840441,-572.0,0.00036767,2]
[392334334,1761355840450,-2054.0,0.00036767,2]
[392334336,1761355840461,-14237.9253818,0.00036792,3]
[392334338,1761355840471,-2022.76,0.000368,30]
[392334340,1761355840481,-254.043692,0.00036802,30]
[392334342,1761355840491,-500.0,0.00036802,2]
[392334344,1761355840500,-500.0,0.00036802,2]
[392334346,1761355840509,-302044.83701194,0.00036802,2]
[392334347,1761355840890,-22077.78298806,0.00036802,2]
[392334348,1761355840899,-52757.88168532,0.00036802,2]
[392334349,1761355840908,-34329.09536799,0.00036802,2]
[392334350,1761355840931,-826.77039322,0.00036802,2]
[392334351,1761355840942,-451.64794988,0.00036802,2]
[392334352,1761355840954,-487.01500007,0.00036802,2]
[392334353,1761355840965,-3527.39032816,0.00036802,2]
[392334360,1761355844278,-153.0,0.00032877,30]
[392334361,1761355844288,-449.12862576,0.00036802,2]
[392334362,1761355844518,-66426.44791655,0.00036802,2]
[392334363,1761355844528,-1210.0,0.00036802,2]
[392334364,1761355844537,-713.89853773,0.00036802,2]
[392334365,1761355844546,-367.60776943,0.00036802,2]
[392334366,1761355844556,-353.71900934,0.00036802,2]
[392334367,1761355844566,-1292.12565192,0.00036802,2]
[392334368,1761355844575,-2827.79670752,0.00036802,2]
[392334369,1761355844585,-23607.11027129,0.00036802,2]
[392334370,1761355844593,-6336.47586551,0.00036802,7]
[392334373,1761355846194,-287.5333316,0.00036679,2]
[392334374,1761355846207,-531.4666684,0.00036679,2]
[392334375,1761355846217,-1179.61950838,0.00036802,7]
[392334376,1761355846302,-455.95,0.00036802,7]
[392334377,1761355846315,-145.91629849,0.00036802,7]
[392334378,1761355846325,-485.38305074,0.00036802,6]
[392334379,1761355846409,-147.92616977,0.00036802,6]
[392334380,1761355846420,-6716.63528515,0.00036802,7]
[392334381,1761355846431,-5264.59167425,0.00036802,2]
[392334382,1761355846439,-544.24418483,0.00036802,7]
[392334383,1761355846448,-351.94107612,0.00036802,2]
[392334384,1761355846458,-1372.83557782,0.00036802,2]
[392334385,1761355846467,-16238.6216119,0.00036802,7]
[392334386,1761355846476,-8406.56516422,0.00036802,7]
[392334389,1761355932699,154.6,0.00013699,2]
[392334390,1761355938969,191.0,0.00036802,120]
[392334391,1761355974832,999.999999,0.00036713,120]
[392334393,1761356050042,1637.90250703,0.00036713,60]
[392334394,1761356059858,154.00244038,0.00036713,60]
[392334399,1761356422085,175.93182,0.00036712,60]
[392334400,1761356422116,158.33367,0.00036712,60]
[392334427,1761357031328,165.41,0.00017169,2]
[392334428,1761357031581,24.74,0.00018072,2]
[392334430,1761357032403,-140.67,0.00018072,2]
[392334431,1761357032413,-165.41,0.00018976,2]
[392334432,1761357032422,-165.41,0.0001988,2]
[392334433,1761357032432,-154.6,0.00021404,2]
[392334434,1761357032443,-1010.0,0.000274,2]
[392334435,1761357032453,-500.0,0.00027616,2]
[392334436,1761357032464,-172.16,0.00028463,2]
[392334437,1761357032477,-154.6,0.0002911,2]
[392334438,1761357032487,-1010.18690865,0.000311,2]
[392334439,1761357032497,-600.0,0.00032877,2]
[392334440,1761357032507,-200.0,0.00033014,2]
[392334441,1761357032518,-200.0,0.00033151,2]
[392334442,1761357032527,-603.57419146,0.00033425,2]
[392334443,1761357032537,-500.0,0.00033807,7]
[392334444,1761357032547,-500.0,0.00033807,7]
[392334445,1761357032557,-500.0,0.00033807,7]
[392334446,1761357032567,-500.0,0.00033807,7]
[392334447,1761357032577,-500.0,0.00033807,7]
[392334448,1761357032587,-500.0,0.00033807,7]
[392334449,1761357032596,-500.0,0.00033807,7]
[392334450,1761357032606,-437.90977592,0.00033807,7]
[392334451,1761357032615,-999.99,0.00033808,2]
[392334452,1761357032625,-9999.99,0.00033808,2]
[392334453,1761357032635,-150.99,0.00033808,2]
[392334454,1761357032644,-1143.59,0.00034371,7]
[392334455,1761357032654,-500.0,0.00034459,2]
[392334456,1761357032667,-3117.33,0.00034506,2]
[392334458,1761357032676,-3119.41,0.00034649,2]
[392334459,1761357032686,-442.0,0.00035125,30]
[392334460,1761357032696,-1000.0,0.00035168,2]
[392334461,1761357032705,-363.54160288,0.00035291,2]
[392334462,1761357032715,-1600.0,0.00035298,2]
[392334463,1761357032724,-408.0,0.00035298,2]
[392334464,1761357032733,-4280.38,0.000353,2]
[392334465,1761357032743,-200.0,0.00035321,2]
[392334466,1761357032753,-151.0,0.00035321,2]
[392334467,1761357032762,-151.0,0.00035321,2]
[392334468,1761357032772,-151.0,0.00035321,2]
[392334469,1761357032782,-151.0,0.00035321,2]
[392334470,1761357032792,-151.0,0.00035321,2]
[392334471,1761357032802,-151.0,0.00035321,2]
[392334472,1761357032811,-250.0,0.00035321,2]
[392334473,1761357032821,-151.0,0.00035321,2]
[392334474,1761357032832,-274.80193475,0.00035321,2]
[392334475,1761357032842,-202.77975042,0.00035321,2]
[392334476,1761357032855,-151.0,0.00035321,2]
[392334477,1761357032865,-151.0,0.00035321,2]
[392334478,1761357032874,-151.0,0.00035321,2]
[392334479,1761357032884,-268.51089923,0.00035321,2]
[392334480,1761357032894,-151.0,0.00035321,2]
[392334481,1761357032903,-151.0,0.00035321,2]
[392334482,1761357032912,-151.0,0.00035321,2]
[392334483,1761357032923,-151.0,0.00035321,2]
[392334484,1761357032933,-151.0,0.00035321,2]
[392334485,1761357032943,-151.0,0.00035321,2]
[392334486,1761357032953,-200.0,0.00035321,2]
[392334487,1761357032963,-151.0,0.00035321,2]
[392334488,1761357032973,-500.0,0.00035321,2]
[392334489,1761357032982,-151.0,0.00035321,2]
[392334490,1761357032992,-500.0,0.00035321,2]
[392334491,1761357033002,-151.0,0.00035321,2]
[392334492,1761357033011,-500.0,0.00035321,2]
[392334493,1761357033021,-151.0,0.00035321,2]
[392334494,1761357033031,-500.0,0.00035321,2]
[392334495,1761357033041,-247.61285918,0.00035321,2]
[392334496,1761357033054,-466.54044407,0.00035321,2]
[392334497,1761357033065,-211.34086981,0.00035321,2]
[392334498,1761357033074,-520.60703777,0.00035321,2]
[392334499,1761357033084,-183.95080002,0.00035342,7]
[392334500,1761357033093,-167.27610012,0.00035342,41]
[392334501,1761357033103,-535.476,0.00035342,41]
[392334502,1761357033112,-290.39,0.0003539,30]
[392334503,1761357033121,-157.14880624,0.00035485,2]
[392334504,1761357033131,-159.56043698,0.00035485,2]
[392334505,1761357033142,-4553.73,0.00035506,2]
[392334506,1761357033151,-150.0,0.00035666,2]
[392334507,1761357033161,-168.0,0.0003576,2]
[392334508,1761357033172,-1765.56445394,0.00035841,2]
[392334509,1761357033182,-168.0,0.00035842,2]
[392334510,1761357033192,-300.0,0.00035852,2]
[392334511,1761357033201,-203.33226845,0.00035869,2]
[392334512,1761357033210,-202.7521737,0.00035869,2]
[392334513,1761357033219,-168.0,0.00035925,2]
[392334514,1761357033229,-2234.20540928,0.00035932,2]
[392334515,1761357033241,-488.03,0.00035941,2]
[392334516,1761357033251,-407.0,0.00035994,120]
[392334517,1761357033261,-58073.09864387,0.00036,4]
[392334518,1761357033597,-12550.62781796,0.00036,4]
[392334519,1761357033610,-30450.55820957,0.00036,4]
[392334520,1761357033661,-165.41,0.00020783,2]
[392334521,1761357033671,-33901.69357659,0.00036,4]
[392334523,1761357038177,-165.41,0.00021687,2]
[392334524,1761357038186,-165.41,0.00022591,2]
[392334525,1761357038195,-165.41,0.00023494,2]
[392334526,1761357038205,-165.41,0.00024398,2]
[392334527,1761357038214,-165.41,0.00025301,2]
[392334528,1761357038224,-165.41,0.00026205,2]
[392334529,1761357038233,-165.41,0.00027109,2]
[392334530,1761357038242,-165.41,0.00028012,2]
[392334531,1761357038252,-165.41,0.00028916,2]
[392334532,1761357038262,-165.41,0.0002982,2]
[392334533,1761357038272,-165.41,0.00030723,2]
[392334534,1761357038282,-165.41,0.00031627,2]
[392334535,1761357038295,-165.41,0.0003253,2]
[392334536,1761357038304,-165.41,0.00033434,2]
[392334537,1761357038315,-437.54553066,0.00033806,7]
[392334538,1761357038324,-165.41,0.00034338,2]
[392334539,1761357038334,-2151.46317874,0.00036,4]
[392334540,1761357038377,-420.05148756,0.00036,4]
[392334542,1761357040233,-1674.95601927,0.00036,4]
[392334543,1761357040549,-14991.85984733,0.00036,4]
[392334544,1761357040559,-217.04371947,0.00036,2]
[392334545,1761357040569,-407.0,0.00036032,7]
[392334546,1761357040580,-476.13251256,0.00036147,2]
[392334547,1761357040590,-407.0,0.00036226,7]
[392334548,1761357040599,-407.0,0.0003628,2]
[392334549,1761357040609,-407.0,0.00036333,2]
[392334550,1761357040619,-1000.0,0.000364,7]
[392334551,1761357040629,-452.15042283,0.00036437,2]
[392334552,1761357040638,-302.6,0.00036462,2]
[392334553,1761357040648,-2234.20540921,0.00036525,2]
[392334554,1761357040658,-376.346,0.00036579,2]
[392334555,1761357040667,-452.15042284,0.00036588,2]
[392334556,1761357040677,-2083.104862,0.00036633,2]
[392334557,1761357040686,-150.0,0.00036666,2]
[392334558,1761357040695,-150.0,0.00036666,2]
[392334559,1761357040704,-2450.34,0.00036679,2]
[392334561,1761357040713,-150.0,0.00036679,2]
[392334563,1761357040723,-150.0,0.00036679,2]
[392334565,1761357040732,-150.0,0.00036679,2]
[392334567,1761357040741,-150.0,0.00036679,2]
[392334569,1761357040749,-839.83,0.00036679,2]
[392334571,1761357040759,-181.11,0.00036679,2]
[392334573,1761357040768,-547.6,0.00036679,2]
[392334575,1761357040778,-831.74177143,0.000367,9]
[392334577,1761357040787,-163.57988453,0.000367,15]
[392334579,1761357040796,-500.0,0.0003671,2]
[392334582,1761357040806,-157.35818314,0.0003671,30]
[392334584,1761357040815,-235.7593192,0.00036711,30]
[392334586,1761357040824,-524.4116861,0.00036711,7]
[392334588,1761357040834,-20911.3869635,0.00036711,120]
[392334590,1761357040843,-202.89544351,0.00036711,7]
[392334592,1761357040852,-504.16230608,0.00036711,2]
[392334593,1761357040862,-17593.96479389,0.00036712,7]
[392334594,1761357040871,-2321.2850679,0.00036712,2]
[392334595,1761357040880,-63017.81885401,0.00036712,2]
[392334597,1761357040889,-3552.96164974,0.00036712,2]
[392334599,1761357040898,-150.0,0.00036733,2]
[392334601,1761357040907,-152.61371726,0.00036733,2]
[392334603,1761357040917,-150.0,0.00036733,2]
[392334605,1761357040929,-500.0,0.00036733,2]
[392334607,1761357040938,-254.43931341,0.00036733,2]
[392334609,1761357040948,-150.0,0.00036733,2]
[392334611,1761357040957,-500.0,0.00036733,2]
[392334612,1761357040968,-150.85546105,0.00036733,2]
[392334614,1761357040978,-500.0,0.00036733,2]
[392334616,1761357040987,-819.0,0.00036733,2]
[392334619,1761357040996,-3414.0,0.00036733,2]
[392334621,1761357041005,-2054.0,0.00036733,2]
[392334623,1761357041014,-572.0,0.00036733,2]
[392334624,1761357041024,-606.0,0.00036733,2]
[392334626,1761357041033,-1312.0,0.00036733,2]
[392334628,1761357041042,-1592.0,0.00036733,2]
[392334630,1761357041051,-1270.0,0.00036733,2]
[392334632,1761357041060,-818.0,0.00036733,2]
[392334634,1761357041069,-6458.0,0.00036733,2]
[392334636,1761357041078,-6541.0,0.00036733,2]
[392334638,1761357041087,-558.0,0.00036733,2]
[392334640,1761357041096,-3488.0,0.00036733,2]
[392334642,1761357041105,-151.04,0.00036736,2]
[392334644,1761357041114,-151.0,0.00036736,2]
[392334646,1761357041124,-152.12,0.00036736,2]
[392334648,1761357041133,-172.67,0.00036736,2]
[392334650,1761357041142,-1095.2,0.00036736,2]
[392334652,1761357041151,-547.6,0.00036736,2]
[392334654,1761357041160,-150.0,0.00036736,2]
[392334656,1761357041169,-150.0,0.00036736,2]
[392334658,1761357041178,-152.2573314,0.00036788,2]
[392334660,1761357041187,-152.36875201,0.00036788,2]
[392334662,1761357041197,-500.0,0.00036788,2]
[392334664,1761357041206,-150.0,0.00036788,2]